bitfinex/quotes_ETHUSD_20240718
["timestamp","ask_amount","ask_price","bid_price","bid_amount"]
[1721295280450,0.90816683,3458.6,3458.5,0.61549737]
[1721295280770,5.47587348,3458.6,3458.5,0.61549737]
[1721295281146,5.47587348,3458.6,3458.5,0.55]
[1721295281901,5.47587348,3458.6,3457.8,2.89196]
[1721295282193,2.89152,3458.4,3457.8,2.89196]
[1721295282372,2.89152,3458.4,3457.9,0.55]
[1721295282578,2.89152,3458.4,3457.9,0.61335027]
[1721295283564,3.19127348,3458.6,3457.9,3.50526027]
[1721295283772,3.19127348,3458.6,3457.9,3.44191]
[1721295284066,3.19127348,3458.6,3458.0,0.06335572]
[1721295284267,3.19127348,3458.6,3458.1,0.55]
[1721295284664,3.19127348,3458.6,3458.2,0.06335572]
[1721295284876,3.19127348,3458.6,3458.0,0.55]
[1721295285102,3.19127348,3458.6,3458.3,0.06335572]
[1721295285278,5.87610935,3458.5,3458.0,0.55]
[1721295285474,5.87610935,3458.5,3458.4,0.06335572]
[1721295285679,5.87610935,3458.5,3458.0,0.55]
[1721295285881,5.87610935,3458.5,3458.4,0.0633639]
[1721295286065,5.87610935,3458.5,3458.0,0.55]
[1721295286261,2.89151,3458.4,3458.0,0.55]
[1721295286776,2.89151,3458.4,3457.8,3.442]
[1721295288008,2.89151,3458.4,3457.8,0.55]
[1721295288213,2.89168,3458.2,3457.6,3.44217]
[1721295288372,5.78342,3458.2,3457.6,3.44217]
[1721295288567,2.89177,3458.1,3457.6,0.55]
[1721295288775,2.89177,3458.1,3457.5,0.55]
[1721295288776,2.89185,3458.0,3457.5,0.55]
[1721295288982,2.89185,3458.0,3457.4,0.55]
[1721295290037,5.35403,3457.9,3457.4,0.55]
[1721295293714,5.35403,3457.9,3457.5,0.0633993]
[1721295293918,5.35403,3457.9,3457.6,0.55]
[1721295294386,5.35403,3457.9,3457.7,0.0633993]
[1721295294586,5.35403,3457.9,3457.8,0.55]
[1721295296800,5.35403,3457.9,3457.1,2.89252]
[1721295296996,2.89201,3457.8,3457.2,3.44248]
[1721295297206,2.89201,3457.8,3457.2,3.5040157]
[1721295298589,2.89201,3457.8,3457.2,0.6115357]
[1721295299189,0.29998775,3457.7,3457.2,0.6115357]
[1721295300110,0.29998775,3457.7,3457.2,3.5040257]
[1721295300330,0.29998775,3457.7,3457.6,0.82]
[1721295300516,0.29998775,3457.7,3457.6,1.37]
[1721295300703,0.29998775,3457.7,3457.6,1.4315357]
[1721295302427,2.89201,3457.8,3457.6,1.4315357]
[1721295302624,2.89201,3457.8,3457.7,0.55]
[1721295303193,2.89201,3457.8,3457.7,0.6115357]
[1721295305306,2.4621,3457.9,3457.7,0.6115357]
[1721295305593,5.78346,3458.2,3457.8,0.82]
[1721295305797,2.89177,3458.1,3457.8,0.82]
[1721295306248,2.89184,3458.0,3457.8,0.82]
[1721295306594,2.89176,3458.1,3457.8,0.82]
[1721295307510,1.21450182,3458.4,3458.0,0.82]
[1721295307735,4.21450182,3458.4,3458.1,0.55]
[1721295308035,5.89158,3458.4,3458.1,0.55]
[1721295308202,5.89158,3458.4,3458.2,0.0615357]
[1721295308408,5.89158,3458.4,3458.0,0.82]
[1721295308595,3.0,3458.4,3458.0,0.82]
[1721295308798,8.57450182,3458.6,3458.0,0.82]
[1721295308799,5.89147,3458.5,3458.0,0.82]
[1721295308995,2.89151,3458.4,3458.1,0.0615357]
[1721295309201,3.0,3458.5,3458.0,0.82]
[1721295309503,5.89144,3458.5,3458.1,0.55]
[1721295309728,5.89144,3458.5,3458.1,0.6115357]
[1721295310138,7.87227318,3458.5,3458.1,0.6115357]
[1721295310505,7.87227318,3458.5,3458.1,0.55]
[1721295311998,2.89144,3458.5,3458.2,0.82]
[1721295312212,2.89144,3458.5,3458.2,0.88157929]
[1721295312425,0.29997445,3458.4,3458.2,0.82]
[1721295312936,0.29997445,3458.4,3458.3,0.06157929]
[1721295313237,0.29997445,3458.4,3458.2,0.82]
[1721295313438,0.29997445,3458.4,3458.3,0.06157929]
[1721295313810,0.29997445,3458.4,3458.2,0.82]
[1721295314002,0.29997445,3458.4,3458.3,0.06157929]
[1721295314403,0.29997445,3458.4,3458.1,0.55]
[1721295314632,0.29997445,3458.4,3458.3,0.06157929]
[1721295314813,0.29997445,3458.4,3458.1,0.55]
[1721295315297,0.29997445,3458.4,3458.2,0.06157929]
[1721295319007,0.29997445,3458.4,3458.2,2.95323929]
[1721295321833,0.29997445,3458.4,3458.2,0.06157929]
[1721295322046,1.0354625,3458.4,3458.2,0.06157929]
[1721295322745,1.0354625,3458.4,3458.1,0.55]
[1721295323328,0.29997445,3458.4,3458.2,0.06147845]
[1721295323509,0.29997445,3458.4,3458.1,0.55]
[1721295323712,0.29997445,3458.4,3458.3,0.06147845]
[1721295323913,0.29997445,3458.4,3458.1,0.55]
[1721295324142,0.29997445,3458.4,3458.3,0.06147845]
[1721295324345,0.29997445,3458.4,3458.1,0.55]
[1721295324847,0.29997445,3458.4,3458.2,0.06147845]
[1721295325234,0.29997445,3458.4,3458.1,0.55]
[1721295325442,0.29997445,3458.4,3458.3,0.06147845]
[1721295325647,0.29997445,3458.4,3458.1,0.55]
[1721295325950,0.29997445,3458.4,3458.2,0.06147845]
[1721295326115,0.29997445,3458.4,3458.1,0.55]
[1721295326325,0.29997445,3458.4,3458.3,0.06147845]
[1721295326547,0.29997445,3458.4,3458.1,0.55]
[1721295326753,0.29997445,3458.4,3458.3,0.06147845]
[1721295326953,0.29997445,3458.4,3458.1,0.55]
[1721295327116,0.29997445,3458.4,3458.3,0.06144197]
[1721295327316,0.29997445,3458.4,3458.1,0.55]
[1721295327534,0.29997445,3458.4,3458.3,0.06144199]
[1721295327859,0.29997445,3458.4,3458.1,0.55]
[1721295328238,0.29997445,3458.4,3458.2,0.06144199]
[1721295330488,0.29997445,3458.4,3458.3,8.81558]
[1721295330694,0.29997445,3458.4,3458.3,10.84402199]
[1721295330848,7.36,3459.6,3459.3,2.89067]
[1721295331047,3.59090182,3459.9,3459.4,3.44064]
[1721295331284,0.29959492,3459.5,3459.4,3.44064]
[1721295332856,0.29959492,3459.5,3459.4,0.55]
[1721295333068,0.29959492,3459.5,3459.3,0.55]
[1721295333476,0.29959492,3459.5,3459.3,3.44075]
[1721295336049,0.29959492,3459.5,3459.3,0.55]
[1721295336247,0.29959492,3459.5,3459.2,3.44082]
[1721295338609,0.29959492,3459.5,3459.3,0.15209661]
[1721295338798,0.29959492,3459.5,3459.4,0.55]
[1721295339103,0.29959492,3459.5,3459.4,0.70209661]
[1721295340685,3.19018492,3459.5,3459.4,0.70209661]
[1721295340876,3.19018492,3459.5,3459.4,0.55]
[1721295343677,3.19018492,3459.5,3459.4,0.70199584]
[1721295345014,0.29959492,3459.5,3459.4,0.70199584]
[1721295346333,0.29959492,3459.5,3459.4,1.52099584]
[1721295346539,0.29959492,3459.5,3459.4,2.20738042]
[1721295347030,0.29959492,3459.5,3459.4,1.52099584]
[1721295348728,0.29959492,3459.5,3459.4,0.70199584]
[1721295350267,0.29959492,3459.5,3459.4,1.52099584]
[1721295351358,0.29959492,3459.5,3459.4,0.70199584]
[1721295352845,0.29959492,3459.5,3459.4,1.52099584]
[1721295363588,0.29959492,3459.5,3459.4,0.70199584]
[1721295364657,0.29959492,3459.5,3459.4,1.52099584]
[1721295367085,0.29959492,3459.5,3459.4,6.73296584]
[1721295369082,0.29959492,3459.5,3459.4,9.62363584]
[1721295370281,3.0,3460.4,3459.8,2.89029]
[1721295370485,3.0,3460.4,3459.9,4.41096534]
[1721295370797,3.48310182,3460.6,3459.9,4.41096534]
[1721295370798,0.29970845,3460.3,3459.9,4.41096534]
[1721295372197,0.29970845,3460.3,3459.9,6.72746534]
[1721295372707,0.29970845,3460.3,3460.1,0.819]
[1721295372898,0.29970845,3460.3,3460.2,0.55]
[1721295373269,0.29970845,3460.3,3460.2,0.70171534]
[1721295373469,0.29970845,3460.3,3460.2,3.59171534]
[1721295375801,0.29970845,3460.3,3460.2,6.48171534]
[1721295375972,0.29970845,3460.3,3460.2,9.66478687]
[1721295377506,0.29970845,3460.3,3460.2,4.32178687]
[1721295377703,0.29970845,3460.3,3460.2,0.15171534]
[1721295377905,2.8901,3460.1,3459.4,0.819]
[1721295378109,2.8901,3460.1,3459.5,0.14619324]
[1721295378483,2.8901,3460.1,3459.6,0.819]
[1721295378695,2.8901,3460.1,3459.4,0.819]
[1721295379100,5.78027,3460.1,3459.5,0.14619324]
[1721295379419,2.89019,3460.0,3459.5,0.14619324]
[1721295379983,2.89007,3460.2,3459.6,0.819]
[1721295380287,2.89007,3460.2,3459.7,0.14619324]
[1721295380613,2.89007,3460.2,3459.7,0.55]
[1721295380814,2.89007,3460.2,3459.8,0.14619324]
[1721295381021,3.99980472,3460.2,3459.9,0.55]
[1721295381315,2.8901,3460.1,3459.9,0.14619324]
[1721295381523,2.8901,3460.1,3460.0,0.55]
[1721295381821,2.8901,3460.1,3460.0,0.14619324]
[1721295382021,2.8901,3460.1,3460.0,0.55]
[1721295382336,3.9594005,3460.1,3460.0,0.55]
[1721295382541,3.9594005,3460.1,3459.7,0.55]
[1721295382772,3.9594005,3460.1,3458.6,1.50757671]
[1721295382773,1.0693005,3460.1,3460.0,0.14619324]
[1721295383021,1.0693005,3460.1,3458.2,2.8916]
[1721295383022,2.891,3459.1,3458.2,2.8916]
[1721295383345,2.89101,3459.0,3458.2,2.8916]
[1721295383833,2.89109,3458.9,3458.2,2.8916]
[1721295384794,2.89109,3458.9,3458.3,0.67690203]
[1721295384994,2.89109,3458.9,3458.3,0.55]
[1721295387722,2.89118,3458.8,3458.3,0.55]
[1721295387909,2.89118,3458.8,3457.6,2.89214]
[1721295387910,2.89143,3458.5,3458.1,0.55]
[1721295388217,0.8395946,3458.9,3457.7,2.89209]
[1721295388218,2.89152,3458.4,3457.7,2.89209]
[1721295388418,2.89152,3458.4,3458.2,0.12690203]
[1721295388603,3.469806,3458.4,3457.7,2.89209]
[1721295388806,3.469806,3458.4,3458.3,0.12690203]
[1721295389013,3.469806,3458.4,3457.7,2.89209]
[1721295389397,2.89152,3458.4,3457.8,0.67690203]
[1721295390433,2.89152,3458.4,3457.8,3.56889203]
[1721295390636,2.89134,3458.6,3457.8,3.56889203]
[1721295391432,2.89142,3458.5,3457.8,3.56889203]
[1721295392834,2.89142,3458.5,3457.9,2.89192]
[1721295393042,2.89142,3458.5,3458.0,0.55]
[1721295393343,2.89142,3458.5,3458.1,0.12690203]
[1721295393543,2.89142,3458.5,3458.2,0.55]
[1721295394142,0.30034315,3458.4,3458.3,0.12690203]
[1721295394349,0.30034315,3458.4,3458.3,0.55]
[1721295394555,0.30034315,3458.4,3458.3,0.67690203]
[1721295396757,0.91951746,3458.4,3458.3,0.67690203]
[1721295396906,2.89167,3458.3,3457.1,2.3176]
[1721295397257,0.91951746,3458.4,3457.2,0.1272569]
[1721295397258,2.89194,3457.9,3457.2,0.1272569]
[1721295397422,3.470319,3457.9,3457.2,0.1272569]
[1721295397629,2.89194,3457.9,3457.2,3.0197069]
[1721295397841,2.89194,3457.9,3457.2,0.1272569]
[1721295398456,2.89208,3457.8,3457.2,0.1272569]
[1721295398669,2.89228,3457.5,3457.2,0.1272569]
[1721295399173,2.89235,3457.4,3457.3,0.1230269]
[1721295399331,2.89235,3457.4,3456.7,2.89287]
[1721295399533,2.89235,3457.4,3456.8,0.1230269]
[1721295399963,2.89244,3457.3,3456.8,0.1230269]
[1721295400186,2.89244,3457.3,3456.9,0.55]
[1721295400351,2.89244,3457.3,3456.9,0.1230269]
[1721295400531,2.89244,3457.3,3457.0,0.55]
[1721295400733,2.89244,3457.3,3457.1,0.1230269]
[1721295400945,2.89244,3457.3,3457.2,0.55]
[1721295401132,2.89244,3457.3,3457.2,0.6730269]
[1721295402354,6.363359,3457.3,3457.2,0.1230269]
[1721295402549,2.89278,3456.9,3456.3,2.89319]
[1721295404079,2.89278,3456.9,3456.4,0.55]
[1721295404259,0.29978779,3456.8,3456.4,0.55]
[1721295405036,0.29978779,3456.8,3456.2,3.44333]
[1721295406238,3.19265779,3456.8,3456.2,3.44333]
[1721295409387,3.19265779,3456.8,3456.2,6.3366]
[1721295410182,0.29978779,3456.8,3456.3,2.89326]
[1721295410408,0.29978779,3456.8,3456.4,0.55]
[1721295412095,0.29978779,3456.8,3456.4,3.44316]
[1721295412878,0.29978779,3456.8,3456.4,0.55]
[1721295413092,0.29978779,3456.8,3456.1,4.4592]
[1721295413093,0.29978779,3456.8,3456.7,2.89293]
[1721295413256,0.29978779,3456.8,3456.7,5.73653]
[1721295413687,0.29978779,3456.8,3456.7,5.86080342]
[1721295413907,0.29978779,3456.8,3456.7,8.75373342]
[1721295414062,0.29978779,3456.8,3456.7,9.62910676]
[1721295414698,1e-08,3456.8,3456.7,9.62910676]
[1721295414864,3.0,3457.8,3457.2,2.89246]
[1721295415192,0.29986869,3457.7,3457.3,0.55]
[1721295415353,0.29986869,3457.7,3457.3,0.67420833]
[1721295420572,4.10035656,3457.7,3457.3,0.67420833]
[1721295421275,3.19197869,3457.7,3457.3,0.67420833]
[1721295422004,0.29986869,3457.7,3457.3,0.67420833]
[1721295422206,3.19198869,3457.7,3457.3,0.67420833]
[1721295422766,0.29986869,3457.7,3457.3,0.67420833]
[1721295426720,5.35443,3457.6,3457.3,0.67420833]
[1721295426874,0.85463887,3457.5,3457.3,0.67420833]
[1721295427226,5.35443,3457.6,3457.3,0.67420833]
[1721295429111,0.29986869,3457.7,3457.3,3.01110833]
[1721295429414,0.29986869,3457.7,3457.3,5.90352833]
[1721295430909,0.29986869,3457.7,3457.4,2.95010498]
[1721295431114,0.29986869,3457.7,3457.6,8.05524]
[1721295431317,7.36,3458.8,3458.2,2.89165]
[1721295431497,0.29939473,3458.5,3458.3,2.89158]
[1721295431699,0.29939473,3458.5,3458.4,0.55]
[1721295432115,0.29939473,3458.5,3458.4,0.67395888]
[1721295433179,3.19081473,3458.5,3458.4,0.67395888]
[1721295433373,4.0406322,3458.5,3458.4,0.67395888]
[1721295433627,1.1492122,3458.5,3457.2,1.50831159]
[1721295433841,2.89184,3458.1,3457.1,2.2678]
[1721295433977,5.30795,3458.0,3457.2,2.89246]
[1721295434585,2.89217,3457.7,3456.7,2.4435]
[1721295434791,2.4161,3458.0,3457.0,2.8926]
[1721295435204,2.89219,3457.6,3457.0,2.8926]
[1721295436011,2.89226,3457.5,3457.1,0.55]
[1721295436523,2.89226,3457.5,3456.9,0.55]
[1721295436524,2.2514,3457.4,3456.9,0.55]
[1721295436700,2.89243,3457.3,3456.9,0.55]
[1721295436880,2.89243,3457.3,3456.8,0.55]
[1721295440289,2.8926,3457.1,3456.8,0.55]
[1721295440503,2.8926,3457.1,3456.6,0.55]
[1721295440827,2.8926,3457.1,3456.5,3.44309]
[1721295441324,2.89269,3457.0,3456.5,0.55]
[1721295441886,0.2992822,3456.9,3456.5,0.55]
[1721295442087,0.2992822,3456.9,3456.3,3.44326]
[1721295442604,3.1920622,3456.9,3456.3,0.55]
[1721295442916,3.1920622,3456.9,3456.3,3.44325]
[1721295443630,3.1920622,3456.9,3456.4,0.12406462]
[1721295443806,3.1920622,3456.9,3456.5,0.55]
[1721295444420,3.1920622,3456.9,3456.6,0.12406462]
[1721295444599,3.1920622,3456.9,3456.7,0.55]
[1721295444997,3.1920622,3456.9,3456.3,2.89325]
[1721295444998,0.2992822,3456.9,3456.8,0.12406462]
[1721295445198,0.2992822,3456.9,3456.8,0.55]
[1721295446333,3.1920422,3456.9,3456.8,0.55]
[1721295446794,3.80050642,3456.9,3456.8,0.55]
[1721295447417,3.1920422,3456.9,3456.8,0.55]
[1721295447914,5.4975422,3456.9,3456.8,0.55]
[1721295451097,3.1920422,3456.9,3456.8,0.55]
[1721295451698,3.1920422,3456.9,3456.8,0.67424359]
[1721295452249,3.1920422,3456.9,3456.8,0.55]
[1721295452403,0.2992822,3456.9,3456.8,0.55]
[1721295453511,0.2992822,3456.9,3456.8,0.67424359]
[1721295453713,0.2992822,3456.9,3456.8,0.97858795]
[1721295453926,7.36,3457.4,3456.8,3.87142795]
[1721295454137,0.29926283,3457.2,3456.9,0.55]
[1721295454645,0.29926283,3457.2,3457.0,0.12434936]
[1721295454810,0.29926283,3457.2,3457.1,0.55]
[1721295455242,0.29926283,3457.2,3457.1,0.12434936]
[1721295455552,0.29926283,3457.2,3457.1,0.55]
[1721295455760,6.69267411,3457.2,3457.1,0.67434936]
[1721295455910,6.08428283,3457.2,3457.1,0.12434936]
[1721295456105,2.8927,3457.0,3456.4,2.89313]
[1721295456311,2.8927,3457.0,3456.5,0.55]
[1721295456510,2.89266,3457.1,3456.5,0.67423816]
[1721295456743,2.89269,3457.0,3456.5,0.67423816]
[1721295460354,3.74472628,3457.0,3456.5,0.67423816]
[1721295460747,2.89289,3456.8,3456.5,0.67423816]
[1721295461115,2.89289,3456.8,3456.5,0.12423816]
[1721295461116,2.89301,3456.6,3456.5,0.12423816]
[1721295461648,2.89301,3456.6,3456.5,0.12426799]
[1721295461841,2.89301,3456.6,3456.0,2.89348]
[1721295462154,2.89301,3456.6,3456.5,0.12426799]
[1721295462340,2.89301,3456.6,3456.5,0.55]
[1721295462548,0.85203628,3457.0,3456.5,0.67426799]
[1721295462549,3.74478628,3457.0,3456.5,0.67426799]
[1721295462730,4.15352592,3456.9,3456.6,0.55]
[1721295462927,2.89293,3456.7,3456.6,0.55]
[1721295463134,2.89309,3456.6,3455.9,5.19075]
[1721295463347,2.89293,3456.7,3456.0,3.44347]
[1721295463656,2.89293,3456.7,3456.0,4.306897]
[1721295464354,0.29923436,3456.6,3456.0,4.306897]
[1721295464956,3.19227436,3456.6,3456.0,4.306897]
[1721295465135,0.29923436,3456.6,3456.0,4.306867]
[1721295465333,0.29923436,3456.6,3456.0,7.200307]
[1721295465535,0.29923436,3456.6,3456.2,2.89328]
[1721295465737,0.29923436,3456.6,3456.3,0.55]
[1721295468437,0.29923436,3456.6,3456.3,3.44325]
[1721295469368,0.29923436,3456.6,3456.4,2.89318]
[1721295469524,0.29923436,3456.6,3456.5,3.44309]
[1721295470874,0.29923436,3456.6,3456.5,4.076717]
[1721295471178,1.20302008,3458.0,3457.2,2.474]
[1721295471329,9.7916,3458.1,3457.4,5.7846]
[1721295471330,2.4316,3458.1,3457.4,5.7846]
[1721295471528,2.4316,3458.1,3457.5,0.55]
[1721295471529,0.2994818,3457.9,3457.5,0.55]
[1721295471765,0.2994818,3457.9,3457.5,0.6743846]
[1721295472327,0.2994818,3457.9,3457.6,2.89216]
[1721295472529,0.2994818,3457.9,3457.7,0.55]
[1721295472845,0.2994818,3457.9,3457.7,0.67425173]
[1721295474355,0.2994818,3457.9,3457.7,3.56632173]
[1721295479349,0.2994818,3457.9,3457.7,0.67425173]
[1721295481469,0.62942998,3457.9,3457.7,0.67425173]
[1721295482566,0.32994818,3457.9,3457.7,0.67425173]
[1721295484421,2.89186,3458.0,3457.7,0.67425173]
[1721295484764,2.89186,3458.0,3457.7,0.55]
[1721295484998,2.89186,3458.0,3457.4,0.55]
[1721295485206,2.89186,3458.0,3457.4,3.44234]
[1721295485576,2.89186,3458.0,3457.5,0.12398599]
[1721295485779,2.89186,3458.0,3457.6,0.55]
[1721295486193,2.89192,3457.9,3457.6,0.55]
[1721295486414,2.89192,3457.9,3457.5,0.55]
[1721295486565,2.89192,3457.9,3457.7,0.12398599]
[1721295486764,2.89192,3457.9,3457.5,0.55]
[1721295486979,1.38295755,3458.0,3457.8,0.12398599]
[1721295487214,4.27480755,3458.0,3457.5,0.55]
[1721295487701,2.89193,3457.9,3457.6,0.12398599]
[1721295487870,4.02890576,3457.9,3457.7,0.55]
[1721295488871,4.02890576,3457.9,3457.8,0.12398599]
[1721295489073,4.02890576,3457.9,3457.5,0.55]
[1721295489298,2.89193,3457.9,3457.6,0.12398599]
[1721295489499,2.89193,3457.9,3457.7,0.55]
[1721295489806,2.89193,3457.9,3457.8,0.12398599]
[1721295490165,2.89193,3457.9,3457.5,0.55]
[1721295490371,2.89193,3457.9,3457.8,0.12398599]
[1721295490575,2.89202,3457.8,3457.5,0.55]
[1721295490775,2.89202,3457.8,3457.3,0.55]
[1721295492320,2.89185,3458.0,3457.3,0.55]
[1721295492475,0.30238801,3457.7,3457.4,2.4182]
[1721295492669,0.30238801,3457.7,3457.5,3.44222]
[1721295495120,0.30238801,3457.7,3457.5,3.44219]
[1721295495634,0.30238801,3457.7,3457.6,2.89217]
[1721295495810,0.30238801,3457.7,3457.6,3.44217]
[1721295498315,0.30238801,3457.7,3457.6,0.55]
[1721295498530,0.30238801,3457.7,3457.4,0.55]
[1721295498690,0.62183281,3457.7,3456.8,2.2561]
[1721295498893,2.89219,3457.6,3456.9,2.89276]
[1721295499807,2.89226,3457.5,3456.9,2.89276]
[1721295500191,2.89226,3457.5,3457.0,0.55]
[1721295502540,5.7846,3457.5,3457.0,0.55]
[1721295502687,2.89235,3457.4,3457.0,0.55]
[1721295503033,3.86412081,3457.5,3456.4,2.89313]
[1721295503034,2.89261,3457.1,3456.4,2.89313]
[1721295504045,2.89269,3457.0,3456.4,2.89313]
[1721295504327,2.89269,3457.0,3456.5,0.11680294]
[1721295504504,3.62175257,3457.0,3456.5,0.66680294]
[1721295504700,2.89282,3456.9,3456.5,0.66680294]
[1721295505533,2.89285,3456.8,3456.5,0.66680294]
[1721295507649,2.89293,3456.7,3456.5,0.66680294]
[1721295507976,2.89282,3456.9,3456.5,0.11680294]
[1721295507977,5.78602,3456.6,3456.5,0.11680294]
[1721295508323,2.8933,3456.3,3455.6,5.2159]
[1721295508524,2.8933,3456.3,3455.7,0.11494183]
[1721295509148,2.8933,3456.3,3455.8,0.55]
[1721295509422,2.89335,3456.2,3455.9,0.11500422]
[1721295509620,2.89335,3456.2,3456.0,0.55]
[1721295510223,2.89325,3456.4,3456.1,0.11500422]
[1721295510420,2.89325,3456.4,3456.2,0.55]
[1721295512251,2.89325,3456.4,3455.9,0.55]
[1721295512865,2.89294,3456.7,3456.0,0.11507747]
[1721295513168,3.0,3456.6,3456.1,2.9841]
[1721295513752,0.30231788,3456.5,3456.2,0.11532699]
[1721295513921,0.30231788,3456.5,3456.3,0.55]
[1721295514471,0.30231788,3456.5,3456.4,0.11532699]
[1721295514655,0.30231788,3456.5,3456.4,0.55]
[1721295514856,0.30231788,3456.5,3456.4,0.66532699]
[1721295518749,0.30231788,3456.5,3456.4,4.44710369]
[1721295519092,0.30231788,3456.5,3456.4,9.68988369]
[1721295519280,2.8923,3457.5,3456.8,2.3496]
[1721295519481,0.30228852,3457.1,3456.9,3.44269]
[1721295519644,0.30228852,3457.1,3457.0,2.89268]
[1721295519839,0.30228852,3457.1,3457.0,3.44268]
[1721295520045,0.30228852,3457.1,3457.0,3.55787678]
[1721295523084,0.30228852,3457.1,3457.0,0.66519678]
[1721295525360,0.30228852,3457.1,3457.0,3.55787678]
[1721295525548,0.30228852,3457.1,3457.0,3.91960712]
[1721295528379,0.30228852,3457.1,3457.0,4.37787678]
[1721295549330,0.30228852,3457.1,3457.0,0.66519678]
[1721295550546,5.56167852,3457.1,3457.0,0.11519678]
[1721295550828,2.89271,3457.0,3456.4,2.89317]
[1721295551197,2.89271,3457.0,3456.5,0.11487673]
[1721295552402,2.89271,3457.0,3456.6,0.55]
[1721295552602,3.71680138,3457.1,3456.6,0.55]
[1721295552921,2.89269,3457.0,3456.7,0.11487673]
[1721295553237,5.78544,3457.0,3456.8,0.55]
[1721295553436,2.89269,3457.0,3456.8,0.55]
[1721295553802,2.89269,3457.0,3456.9,0.11487673]
[1721295553997,2.89269,3457.0,3456.9,0.66487673]
[1721295554194,2.89269,3457.0,3456.9,0.55]
[1721295554436,2.89269,3457.0,3456.6,0.55]
[1721295554809,2.89269,3457.0,3456.7,0.11487673]
[1721295555009,2.89269,3457.0,3456.8,0.55]
[1721295555411,2.89269,3457.0,3456.9,0.11487673]
[1721295555612,2.89269,3457.0,3456.9,0.55]
[1721295556014,5.78545,3457.0,3456.7,0.55]
[1721295556229,5.78545,3457.0,3456.6,0.55]
[1721295556736,2.89269,3457.0,3456.7,0.11487673]
[1721295556901,2.89269,3457.0,3456.8,0.55]
[1721295557401,2.89269,3457.0,3456.5,0.82]
[1721295557402,2.89269,3457.0,3456.6,0.55]
[1721295557842,5.78544,3457.0,3456.7,0.11487673]
[1721295558016,2.89269,3457.0,3456.8,0.55]
[1721295558527,5.78544,3457.0,3456.6,0.55]
[1721295558731,5.78544,3457.0,3456.7,0.11487673]
[1721295558934,5.78544,3457.0,3456.8,0.55]
[1721295559246,2.89269,3457.0,3456.8,0.55]
[1721295559420,5.78544,3457.0,3456.6,0.55]
[1721295559742,2.89276,3456.9,3456.7,0.11487673]
[1721295559944,2.89276,3456.9,3456.8,0.55]
[1721295560308,2.89276,3456.9,3456.8,0.11487673]
[1721295560638,2.89276,3456.9,3456.8,0.55]
[1721295560639,3.85851586,3456.9,3456.8,0.55]
[1721295561003,3.85851586,3456.9,3456.8,0.11487673]
[1721295561304,3.85851586,3456.9,3456.8,0.55]
[1721295561846,3.85851586,3456.9,3456.5,0.55]
[1721295562022,2.89276,3456.9,3456.5,0.55]
[1721295562204,2.89276,3456.9,3456.6,0.11496623]
[1721295562405,2.89276,3456.9,3456.7,0.55]
[1721295562918,2.89276,3456.9,3456.5,0.55]
[1721295563120,2.89276,3456.9,3456.6,0.11496623]
[1721295563418,2.89276,3456.9,3456.7,0.55]
[1721295563944,2.89276,3456.9,3456.5,0.55]
[1721295564239,2.89276,3456.9,3456.6,0.11496623]
[1721295564541,2.89276,3456.9,3456.7,0.55]
[1721295564923,2.89276,3456.9,3456.5,0.55]
[1721295565128,2.89276,3456.9,3456.6,0.11496623]
[1721295565439,2.89276,3456.9,3456.7,0.55]
[1721295566238,2.89276,3456.9,3456.5,0.55]
[1721295566617,2.89276,3456.9,3456.6,0.11496623]
[1721295566814,2.89276,3456.9,3456.7,0.55]
[1721295567319,2.89276,3456.9,3456.8,0.11496623]
[1721295567503,2.89276,3456.9,3456.8,0.55]
[1721295567840,2.89276,3456.9,3456.8,0.66496623]
[1721295568201,4.00999858,3456.9,3456.8,0.55]
[1721295568634,4.00999858,3456.9,3456.8,0.66496623]
[1721295568842,2.89276,3456.9,3456.8,0.55]
[1721295569354,2.89276,3456.9,3456.6,0.55]
[1721295569950,2.89276,3456.9,3456.7,0.11496623]
[1721295570107,2.89276,3456.9,3456.8,0.55]
[1721295570304,2.66908852,3457.1,3456.8,0.55]
[1721295570557,0.30228852,3457.1,3456.9,0.82]
[1721295570846,0.30228852,3457.1,3457.0,9.07750623]
[1721295571001,7.36,3457.5,3457.4,5.34404]
[1721295571201,7.36,3457.5,3457.4,9.60638]
[1721295571441,7.36,3457.5,3457.4,9.72130283]
[1721295571605,7.36,3458.0,3457.7,2.89208]
[1721295571809,4.09461008,3458.3,3457.8,1.37]
[1721295572129,0.30229598,3457.9,3457.8,1.48498792]
[1721295572328,0.30229598,3457.9,3457.8,0.66498792]
[1721295574411,0.30229598,3457.9,3457.8,1.48498792]
[1721295575018,0.30229598,3457.9,3457.8,0.66498792]
[1721295576239,0.30229598,3457.9,3457.8,1.10270271]
[1721295576408,0.30229598,3457.9,3457.8,4.81471271]
[1721295576608,7.36,3458.5,3457.8,1.92270271]
[1721295576810,7.36,3458.5,3458.4,0.82]
[1721295577124,12.57693,3459.1,3458.4,0.93473305]
[1721295577333,12.57693,3459.1,3458.6,0.82]
[1721295577537,0.3023223,3459.0,3458.7,0.55]
[1721295578308,0.3023223,3459.0,3458.8,0.11438105]
[1721295578516,0.3023223,3459.0,3458.9,0.55]
[1721295578823,0.3023223,3459.0,3458.9,0.11438105]
[1721295579039,0.3023223,3459.0,3458.9,0.66438105]
[1721295579220,0.3023223,3459.0,3458.9,0.55]
[1721295579423,0.3023223,3459.0,3458.9,0.11438105]
[1721295579619,0.3023223,3459.0,3458.9,0.66438105]
[1721295579839,1.30669883,3459.0,3458.9,0.55]
[1721295580032,1.30669883,3459.0,3458.9,0.11438105]
[1721295580244,1.30669883,3459.0,3458.9,0.55]
[1721295580617,1.30669883,3459.0,3458.7,0.55]
[1721295580821,0.3023223,3459.0,3458.7,0.55]
[1721295581050,0.3023223,3459.0,3458.8,0.11438105]
[1721295581345,0.3023223,3459.0,3458.9,0.55]
[1721295581714,0.3023223,3459.0,3458.7,0.55]